lending/lending_fUSD_20260204
["ID","MTS","AMOUNT","RATE_DAILY","PERIOD"]
[404510301,1770232255639,-300.0,0.00039471,2]
[404510302,1770232255648,-516.59665378,0.00039471,2]
[404510303,1770232255658,-305.06087838,0.00039471,2]
[404510304,1770232255667,-300.0,0.00039471,2]
[404510305,1770232255676,-300.0,0.00039471,2]
[404510306,1770232255685,-300.0,0.00039471,2]
[404510307,1770232255695,-300.0,0.00039471,2]
[404510308,1770232255704,-300.0,0.00039471,2]
[404510309,1770232255713,-300.0,0.00039471,2]
[404510310,1770232255722,-524.51028514,0.00039471,2]
[404510311,1770232255731,-300.0,0.00039471,2]
[404510312,1770232255740,-300.0,0.00039471,2]
[404510313,1770232255749,-300.0,0.00039471,2]
[404510314,1770232255758,-300.0,0.00039471,2]
[404510315,1770232255767,-300.0,0.00039471,2]
[404510316,1770232255776,-852.37048713,0.00039471,2]
[404510317,1770232255785,-304.90968821,0.00039471,2]
[404510318,1770232255795,-300.0,0.00039471,2]
[404510319,1770232255804,-881.05967192,0.00039471,2]
[404510320,1770232255813,-300.0,0.00039471,2]
[404510321,1770232255822,-300.0,0.00039471,2]
[404510322,1770232255832,-300.0,0.00039471,2]
[404510323,1770232255841,-300.0,0.00039471,2]
[404510324,1770232255850,-306.08629653,0.00039471,2]
[404510325,1770232255859,-300.0,0.00039471,2]
[404510326,1770232255869,-300.0,0.00039471,2]
[404510327,1770232255878,-457.00989843,0.00039471,2]
[404510328,1770232255887,-300.0,0.00039471,2]
[404510329,1770232255896,-300.0,0.00039471,2]
[404510330,1770232255904,-300.0,0.00039471,2]
[404510331,1770232255913,-300.0,0.00039471,2]
[404510332,1770232255923,-300.0,0.00039471,2]
[404510333,1770232255932,-300.0,0.00039471,2]
[404510334,1770232255940,-300.0,0.00039471,2]
[404510335,1770232255950,-300.0,0.00039471,2]
[404510336,1770232255959,-516.59665378,0.00039471,2]
[404510337,1770232255968,-305.06087838,0.00039471,2]
[404510338,1770232255977,-300.0,0.00039471,2]
[404510339,1770232255985,-300.0,0.00039471,2]
[404510340,1770232255994,-300.0,0.00039471,2]
[404510341,1770232256003,-190.7482673,0.00039498,2]
[404510342,1770232256012,-1000.0,0.000395,2]
[404510343,1770232256021,-151.0,0.00039597,14]
[404510344,1770232256030,-1034.19817471,0.000396,30]
[404510345,1770232256039,-152.0,0.00039615,20]
[404510346,1770232256048,-481.11077973,0.00039654,2]
[404510347,1770232256057,-150.0,0.00039711,2]
[404510348,1770232256066,-151.0,0.00039726,120]
[404510349,1770232256075,-151.0,0.00039726,120]
[404510350,1770232256085,-151.0,0.00039726,120]
[404510351,1770232256094,-151.0,0.00039726,120]
[404510352,1770232256103,-188.377143,0.00039726,120]
[404510353,1770232256112,-151.0,0.00039726,120]
[404510354,1770232256121,-151.0,0.00039726,120]
[404510355,1770232256131,-151.0,0.00039726,120]
[404510356,1770232256140,-193.456158,0.00039726,120]
[404510357,1770232256149,-193.456158,0.00039726,120]
[404510358,1770232256159,-193.456158,0.00039726,120]
[404510359,1770232256169,-193.456158,0.00039726,120]
[404510360,1770232256178,-151.0,0.00039726,120]
[404510361,1770232256189,-151.0,0.00039726,120]
[404510362,1770232256198,-151.0,0.00039726,120]
[404510363,1770232256207,-151.0,0.00039726,120]
[404510364,1770232256216,-151.0,0.00039726,120]
[404510365,1770232256225,-151.0,0.00039726,120]
[404510366,1770232256234,-151.0,0.00039726,120]
[404510367,1770232256242,-4331.664783,0.00039726,28]
[404510368,1770232256251,-4331.664783,0.00039726,28]
[404510369,1770232256260,-4331.664783,0.00039726,28]
[404510370,1770232256269,-4331.664783,0.00039726,28]
[404510371,1770232256278,-181.196236,0.00039726,120]
[404510372,1770232256288,-151.0,0.00039726,120]
[404510373,1770232256299,-1043.285166,0.00039726,120]
[404510374,1770232256310,-1043.285166,0.00039726,120]
[404510375,1770232256319,-151.0,0.00039726,30]
[404510376,1770232256328,-1043.285166,0.00039726,120]
[404510377,1770232256337,-151.0,0.00039726,30]
[404510378,1770232256346,-1043.285166,0.00039726,120]
[404510379,1770232256357,-151.0,0.00039726,30]
[404510380,1770232256370,-151.0,0.00039726,60]
[404510381,1770232256379,-151.0,0.00039726,120]
[404510382,1770232256390,-163.698799,0.00039726,120]
[404510383,1770232256399,-500.0,0.00039726,15]
[404510384,1770232256409,-500.0,0.00039726,15]
[404510385,1770232256419,-550.0,0.00039726,15]
[404510386,1770232256430,-500.0,0.00039726,15]
[404510387,1770232256440,-500.0,0.00039726,15]
[404510388,1770232256449,-500.0,0.00039726,15]
[404510389,1770232256459,-500.0,0.00039726,15]
[404510390,1770232256468,-500.0,0.00039726,15]
[404510391,1770232256477,-221.98425535,0.00039726,15]
[404510392,1770232256487,-500.0,0.00039726,15]
[404510393,1770232256497,-500.0,0.00039726,15]
[404510394,1770232256507,-500.0,0.00039726,15]
[404510395,1770232256516,-3010.01688486,0.00039726,15]
[404510396,1770232256525,-364.15025238,0.00039726,15]
[404510397,1770232256857,-163.09547634,0.00012731,2]
[404510398,1770232256866,-196.30252366,0.00039726,120]
[404510399,1770232257113,-369.09103911,0.00013629,2]
[404510400,1770232257124,-58.90896089,0.00013629,2]
[404510401,1770232257133,-570.135626,0.00027397,7]
[404510402,1770232257142,-369.97381851,0.00027397,7]
[404510403,1770232257165,-200.16180749,0.00027397,7]
[404510404,1770232257175,-582.95819251,0.0003094,2]
[404510405,1770232257187,-1788.0,0.0003094,2]
[404510406,1770232257198,-4209.04180749,0.0003094,2]
[404510407,1770232257207,-6580.0,0.0003394,2]
[404510408,1770232257216,-6580.0,0.0003694,2]
[404510409,1770232257226,-300.0,0.00039471,2]
[404510410,1770232257235,-300.0,0.00039471,2]
[404510411,1770232257244,-300.0,0.00039471,2]
[404510412,1770232257253,-105.69742234,0.00039726,120]
[404510413,1770232257263,-570.135626,0.00039726,120]
[404510414,1770232257272,-570.135626,0.00039726,120]
[404510415,1770232257281,-570.135626,0.00039726,120]
[404510416,1770232257291,-2645.86663248,0.00039726,15]
[404510417,1770232257300,-3010.01688486,0.00039726,15]
[404510418,1770232257310,-3010.01688486,0.00039726,15]
[404510419,1770232257319,-3010.01688486,0.00039726,15]
[404510420,1770232257329,-3010.01688486,0.00039726,15]
[404510421,1770232257338,-1636.26968288,0.00039726,15]
[404510422,1770232257350,-1201.49821327,0.00039726,15]
[404510423,1770232257395,-172.24898871,0.00039726,15]
[404510424,1770232257404,-432.95561628,0.00039726,15]
[404510425,1770232257414,-765.94774292,0.00039726,15]
[404510426,1770232257427,-1811.11352566,0.00039726,15]
[404510427,1770232257436,-3010.01688486,0.00039726,15]
[404510428,1770232257445,-3010.01688486,0.00039726,15]
[404510429,1770232257454,-568.85270462,0.00039726,15]
[404510430,1770232257466,-2441.16418024,0.00039726,15]
[404510431,1770232257475,-1760.21554087,0.00039726,15]
[404510432,1770232257809,-163.09547634,0.000179,2]
[404510433,1770232257819,-94.32956084,0.00027397,7]
[404510434,1770232257830,-475.80606516,0.00027397,7]
[404510435,1770232257839,-524.51028514,0.00039471,2]
[404510436,1770232257847,-374.57316623,0.00039726,120]
[404510437,1770232257859,-195.56245977,0.00039726,120]
[404510438,1770232257868,-725.99815083,0.00039726,15]
[404510439,1770232257978,-523.80319316,0.00039726,15]
[404510440,1770232257987,-3010.01688486,0.00039726,15]
[404510441,1770232257996,-3010.01688486,0.00039726,15]
[404510442,1770232258005,-3010.01688486,0.00039726,15]
[404510443,1770232258014,-3010.01688486,0.00039726,15]
[404510444,1770232258023,-3010.01688486,0.00039726,15]
[404510445,1770232258033,-3010.01688486,0.00039726,15]
[404510446,1770232258042,-3010.01688486,0.00039726,15]
[404510447,1770232258052,-3010.01688486,0.00039726,15]
[404510448,1770232258061,-3010.01688486,0.00039726,15]
[404510449,1770232258071,-3010.01688486,0.00039726,15]
[404510450,1770232258081,-3010.01688486,0.00039726,15]
[404510451,1770232258090,-3010.01688486,0.00039726,15]
[404510452,1770232258100,-3010.01688486,0.00039726,15]
[404510453,1770232258110,-3010.01688486,0.00039726,15]
[404510454,1770232258119,-3010.01688486,0.00039726,15]
[404510455,1770232258130,-3010.01688486,0.00039726,15]
[404510456,1770232258139,-3010.01688486,0.00039726,15]
[404510457,1770232258149,-3010.01688486,0.00039726,15]
[404510458,1770232258159,-3010.01688486,0.00039726,15]
[404510459,1770232258168,-3010.01688486,0.00039726,15]
[404510460,1770232258178,-3010.01688486,0.00039726,15]
[404510461,1770232258187,-3010.01688486,0.00039726,15]
[404510462,1770232258197,-3010.01688486,0.00039726,15]
[404510463,1770232258206,-3010.01688486,0.00039726,15]
[404510464,1770232258216,-3010.01688486,0.00039726,15]
[404510465,1770232258225,-3010.01688486,0.00039726,15]
[404510466,1770232258235,-3010.01688486,0.00039726,15]
[404510467,1770232258243,-3010.01688486,0.00039726,15]
[404510468,1770232258252,-3010.01688486,0.00039726,15]
[404510469,1770232258261,-3010.01688486,0.00039726,15]
[404510470,1770232258270,-462.09369903,0.00039726,15]
[404510471,1770232258282,-2547.92318583,0.00039726,15]
[404510472,1770232258291,-3010.01688486,0.00039726,15]
[404510473,1770232258300,-3010.01688486,0.00039726,15]
[404510474,1770232258310,-3010.01688486,0.00039726,15]
[404510475,1770232258319,-3010.01688486,0.00039726,15]
[404510476,1770232258329,-3010.01688486,0.00039726,15]
[404510477,1770232258338,-3010.01688486,0.00039726,15]
[404510478,1770232258347,-3010.01688486,0.00039726,15]
[404510479,1770232258361,-3010.01688486,0.00039726,15]
[404510480,1770232258370,-1005.63811978,0.00039726,15]
[404510481,1770232258416,-300.0,0.00039471,2]
[404510482,1770232258426,-1284.3008047,0.00039726,15]
[404510483,1770232258446,-720.07796038,0.00039726,15]
[404510484,1770232258456,-3010.01688486,0.00039726,15]
[404510485,1770232258465,-1136.3560684,0.00039726,15]
[404510486,1770232258476,-1183.3375,0.00039726,15]
[404510487,1770232258488,-538.8,0.00039726,15]
[404510488,1770232258499,-151.52331646,0.00039726,15]
[404510489,1770232258509,-1627.13931644,0.00039726,15]
[404510490,1770232258520,-1382.87756842,0.00039726,15]
[404510491,1770232258529,-3010.01688486,0.00039726,15]
[404510492,1770232258538,-1636.57198043,0.00039726,15]
[404510493,1770232258550,-1373.44490443,0.00039726,15]
[404510494,1770232258561,-3010.01688486,0.00039726,15]
[404510495,1770232258570,-3010.01688486,0.00039726,15]
[404510496,1770232258580,-20.93078486,0.00039726,15]
[404510497,1770232484325,150.0,1e-05,2]
[404510499,1770232578326,359.60000876,0.0002,30]
[404510629,1770233431813,-205.0,9.8e-05,2]
[404510630,1770233431826,-213.75,9.8e-05,2]
[404510631,1770233431841,-17.25,9.8e-05,2]
[404510632,1770233431853,-720.17485784,0.00011831,2]
[404510633,1770233431867,-19.85869416,0.00011831,2]
[404510634,1770233431879,-394.59860583,0.00011891,2]
[404510635,1770233431910,-394.34662065,0.00011891,2]
[404510636,1770233431924,-4818.86477352,0.00011891,2]
[404510637,1770233431936,-250.0,0.00012347,2]
[404510638,1770233431948,-925.62319653,0.00012377,2]
[404510639,1770233431988,-274.37680347,0.00012377,2]
[404510640,1770233432000,-159.99979405,0.00012378,2]
[404510641,1770233432014,-520.98320714,0.00012378,2]
[404510642,1770233432029,-1995.34599881,0.00012378,2]
[404510643,1770233432041,-157.179,0.00012378,2]
[404510644,1770233432053,-6408.35064856,0.00012431,2]
[404510645,1770233432064,-301.02999855,0.000125,2]
[404510646,1770233432076,-150.0,0.00012504,2]
[404510648,1770233432087,-301.67,0.0001251,2]
[404510650,1770233432099,-150.0,0.00012528,2]
[404510652,1770233432111,-4110.09685065,0.00012529,2]
[404510655,1770233432123,-3396.65679027,0.00012529,2]
[404510657,1770233432135,-184.73612666,0.0001253,2]
[404510658,1770233432146,-206.72881426,0.0001253,2]
[404510660,1770233432158,-431.56917967,0.0001253,2]
[404510662,1770233432170,-500.0,0.0001253,2]
[404510664,1770233432181,-500.0,0.0001253,2]
[404510667,1770233432192,-300.0,0.00012629,2]
[404510669,1770233432203,-422.04,0.000129,2]
[404510671,1770233432215,-348.0,0.0001291,2]
[404510673,1770233432227,-1000.0,0.00012931,2]
[404510675,1770233432239,-712.12089884,0.00013061,2]
[404510686,1770233432715,-189.74344261,0.00013061,2]
[404510687,1770233432742,-4110.09685058,0.00013127,2]
[404510688,1770233432770,-3396.65679022,0.00013127,2]
[404510689,1770233432797,-300.0,0.00013547,2]
[404510690,1770233432826,-300.0,0.00013547,2]
[404510691,1770233432852,-195.0,0.00013547,2]
[404510692,1770233432878,-250.0,0.00013547,2]
[404510693,1770233432905,-433.0,0.0001357,2]
[404510694,1770233432931,-258.0,0.00013597,2]
[404510695,1770233432957,-567.50291659,0.00013615,2]
[404510710,1770233438133,-774.71,0.00013615,2]
[404510713,1770233438148,-337.78708341,0.00013615,2]
[404510715,1770233438157,-56.03021312,0.00013616,2]
[404510717,1770233438171,-253.29548484,0.00013616,2]
[404510719,1770233438181,-250.0,0.00013616,2]
[404510722,1770233438191,-255.0,0.00013618,2]
[404510724,1770233438201,-16.70452016,0.00013624,2]
[404510727,1770233438224,-339.12308248,0.00013624,2]
[404510729,1770233438234,-1820.0,0.00013692,2]
[404510731,1770233438243,-377.87779755,0.00013698,2]
[404510733,1770233438254,-500.0,0.00013698,2]
[404510735,1770233438264,-500.0,0.00013698,2]
[404510737,1770233438273,-500.0,0.00013698,2]
[404510739,1770233438282,-380.63494351,0.00013698,2]
[404510741,1770233438293,-500.0,0.00013698,2]
[404510743,1770233438303,-500.0,0.00013698,2]
[404510745,1770233438313,-500.0,0.00013698,2]
[404510747,1770233438323,-500.0,0.00013698,2]
[404510749,1770233438332,-500.0,0.00013698,2]
[404510751,1770233438341,-471.0960947,0.00013698,2]
[404510753,1770233438351,-500.0,0.00013698,2]
[404510754,1770233438360,-171.67735349,0.00013698,2]
[404510755,1770233438371,-328.32264651,0.00013698,2]
[404510756,1770233438381,-302.48,0.00013698,2]
[404510757,1770233438390,-500.0,0.00013698,2]
[404510758,1770233438399,-500.0,0.00013698,2]
[404510759,1770233438408,-500.0,0.00013698,2]
[404510760,1770233438417,-500.0,0.00013698,2]
[404510761,1770233438426,-351.5182,0.00013698,2]
[404510762,1770233438436,-150.99,0.00013699,2]
[404510763,1770233438445,-306.35,0.00013699,2]
[404510764,1770233438456,-9999.99,0.00013699,2]
[404510765,1770233438465,-1409.0,0.0001372,2]
[404510766,1770233438474,-3510.68890135,0.00013725,2]
[404510768,1770233438494,-599.40794923,0.00013725,2]
[404510769,1770233438504,-3396.65679022,0.00013725,2]
[404510772,1770233438514,-1133.0,0.00013747,2]
[404510773,1770233438524,-957.0,0.00013774,2]
[404510775,1770233438535,-6408.35064856,0.00013991,2]
[404510777,1770233438546,-1500.0,0.00014,2]
[404510779,1770233438556,-166.73460678,0.00014064,2]
[404510781,1770233438565,-4110.09685058,0.00014323,2]
[404510783,1770233438575,-3396.65679022,0.00014323,2]
[404510785,1770233438585,-500.0,0.000146,2]
[404510787,1770233438595,-639.05832686,0.000146,2]
[404510790,1770233438605,-500.0,0.000146,2]
[404510792,1770233438615,-500.0,0.000146,2]
[404510794,1770233438624,-433.0,0.00014808,2]
[404510796,1770233438634,-166.73460678,0.00014831,2]
[404510797,1770233438644,-166.73460678,0.00014831,2]
[404510800,1770233438654,-4110.09685058,0.00014921,2]
[404510801,1770233438665,-3396.65679022,0.00014921,2]
[404510804,1770233438677,-500.0,0.00014975,2]
[404510806,1770233438687,-500.0,0.00014975,2]
[404510808,1770233438698,-500.0,0.00014975,2]
[404510810,1770233438709,-500.0,0.00014975,2]
[404510812,1770233438719,-330.1792,0.00014975,2]
[404510814,1770233438729,-712.0,0.00014976,2]
[404510816,1770233438740,-500.0,0.00014995,2]
[404510818,1770233438750,-1000.0,0.00015148,2]
[404510820,1770233438761,-1000.0,0.00015148,2]
[404510822,1770233438771,-418.49460526,0.00015148,2]
[404510824,1770233438781,-500.0,0.00015185,2]
[404510826,1770233438792,-500.0,0.00015326,2]
[404510828,1770233438802,-4110.09685058,0.00015518,2]
[404510830,1770233438813,-3396.65679022,0.00015518,2]
[404510832,1770233438823,-6408.35064856,0.00015552,2]
[404510834,1770233438833,-500.0,0.00015684,2]
[404510835,1770233438842,-1500.0,0.00015696,2]
[404510837,1770233438852,-1500.0,0.00015696,2]
[404510840,1770233438862,-32332.16002893,0.00016,4]
[404510841,1770233438871,-309.0,0.00016086,2]
[404510844,1770233438882,-4110.09685058,0.00016116,2]
[404510846,1770233438892,-3396.65679022,0.00016116,2]
[404510848,1770233438902,-2612.42218713,0.000162,5]
[404510850,1770233438911,-2000.0,0.00016244,2]
[404510852,1770233438921,-2000.0,0.00016244,2]
[404510853,1770233438931,-800.755787,0.00016438,2]
[404510855,1770233438940,-481.28670728,0.00016451,2]
[404510857,1770233438950,-481.28670728,0.00016451,2]
[404510859,1770233438960,-160.0,0.00016701,2]
[404510861,1770233438971,-4110.09685058,0.00016714,2]
[404510863,1770233438980,-3396.65679022,0.00016714,2]
[404510865,1770233438990,-2500.0,0.00016792,2]
[404510867,1770233438999,-1826.91110422,0.00016792,2]
[404510869,1770233439008,-213.59,0.00016813,3]
[404510871,1770233439018,-8009.87,0.00016823,2]
[404510873,1770233439028,-481.28670728,0.00016862,2]
[404510875,1770233439038,-481.28670728,0.00016862,2]
[404510877,1770233439047,-10278.55600006,0.00017,2]
[404510879,1770233439057,-536.0,0.0001704,2]
[404510900,1770233439271,-481.28670728,0.00017273,2]
[404510903,1770233439290,-481.28670728,0.00017273,2]
[404510905,1770233439300,-4110.09685058,0.00017312,2]
[404510907,1770233439310,-3396.65679022,0.00017312,2]
[404510909,1770233439319,-302.09842577,0.00017339,2]
[404510911,1770233439329,-3000.0,0.0001734,2]
[404510913,1770233439339,-839.0,0.0001736,2]
[404510915,1770233439350,-481.28670728,0.00017685,2]
[404510917,1770233439360,-168.0,0.00017688,2]
[404510918,1770233439369,-193.34,0.00017695,2]
[404510920,1770233439379,-150.0,0.00017698,2]
[404510922,1770233439391,-500.0,0.00017698,2]
[404510924,1770233439400,-500.0,0.00017698,2]
[404510926,1770233439410,-150.0,0.00017698,2]
[404510928,1770233439420,-150.0,0.00017753,2]
[404510930,1770233439429,-500.0,0.00017753,2]
[404510932,1770233439439,-500.0,0.00017753,2]
[404510934,1770233439449,-200.0,0.00017808,2]
[404510936,1770233439459,-500.0,0.00017808,2]
[404510938,1770233439469,-500.0,0.00017808,2]
[404510940,1770233439480,-500.0,0.00017808,2]
[404510942,1770233439490,-500.0,0.00017862,2]
[404510944,1770233439499,-500.0,0.00017862,2]
[404510946,1770233439509,-500.0,0.00017863,2]
[404510948,1770233439518,-168.0,0.0001787,2]
[404510950,1770233439527,-3500.0,0.00017888,2]
[404510952,1770233439538,-168.0,0.00017889,2]
[404510954,1770233439548,-17177.6543458,0.000179,2]
[404510956,1770233439557,-13019.67394662,0.000179,2]
[404510958,1770233439567,-5000.0,0.000179,2]
[404510960,1770233439577,-4110.09685058,0.0001791,2]
[404510962,1770233439587,-3396.65679022,0.0001791,2]
[404510964,1770233439597,-500.0,0.00017917,2]
[404510966,1770233439607,-500.0,0.00017917,2]
[404510968,1770233439616,-500.0,0.00017918,2]
[404510970,1770233439627,-500.0,0.00017959,3]
[404510972,1770233439636,-500.0,0.00017972,2]
[404510974,1770233439646,-500.0,0.00017972,2]
[404510976,1770233439656,-500.0,0.00017972,2]
[404510978,1770233439669,-500.0,0.00017973,2]
[404510980,1770233439678,-326.63399032,0.00017973,2]
[404510982,1770233439688,-500.0,0.00017973,2]
[404510984,1770233439698,-500.0,0.00017973,2]
[404510986,1770233439707,-500.0,0.00017973,2]
[404510988,1770233439718,-500.0,0.00017973,2]
[404510990,1770233439728,-500.0,0.00017973,2]
[404510992,1770233439739,-500.0,0.00017973,2]
[404510994,1770233439750,-500.0,0.00017973,2]
[404510996,1770233439760,-500.0,0.00017973,2]
[404510998,1770233439769,-500.0,0.00017973,2]
[404511000,1770233439779,-500.0,0.00017973,2]
[404511002,1770233439789,-500.0,0.00017973,2]
[404511004,1770233439799,-500.0,0.00017973,2]
[404511005,1770233439809,-500.0,0.00017973,2]
[404511006,1770233439818,-500.0,0.00017973,2]
[404511007,1770233439829,-500.0,0.00017973,2]
[404511008,1770233439842,-500.0,0.00017973,2]
[404511009,1770233439852,-500.0,0.00017973,2]
[404511010,1770233439863,-500.0,0.00017973,2]
[404511011,1770233439873,-500.0,0.00017973,2]
[404511012,1770233439883,-500.0,0.00017973,2]
[404511013,1770233439894,-500.0,0.00017973,2]
[404511014,1770233439903,-500.0,0.00017973,2]
[404511015,1770233439914,-500.0,0.00017973,2]
[404511016,1770233439924,-500.0,0.00017973,2]
[404511017,1770233439935,-500.0,0.00017973,2]
[404511018,1770233439946,-500.0,0.00017973,2]
[404511019,1770233439955,-500.0,0.00017973,2]
[404511020,1770233439965,-500.0,0.00017973,2]
[404511021,1770233439975,-500.0,0.00017973,2]
[404511022,1770233439984,-500.0,0.00017973,2]
[404511023,1770233439994,-500.0,0.00017973,2]
[404511024,1770233440006,-371.34493106,0.00017973,2]
[404511025,1770233440015,-500.0,0.00017973,2]
[404511026,1770233440025,-500.0,0.00017973,2]
[404511027,1770233440036,-500.0,0.00017973,2]
[404511028,1770233440046,-500.0,0.00017973,2]
[404511029,1770233440058,-500.0,0.00017973,2]
[404511030,1770233440068,-500.0,0.00017973,2]
[404511031,1770233440077,-500.0,0.00017973,2]
[404511032,1770233440087,-500.0,0.00017973,2]
[404511033,1770233440096,-500.0,0.00017973,2]
[404511034,1770233440105,-500.0,0.00017973,2]
[404511035,1770233440115,-577.54146151,0.00017973,2]
[404511036,1770233440125,-500.40903786,0.00017973,2]
[404511037,1770233440135,-500.0,0.00017985,2]
[404511038,1770233440145,-20956.17971618,0.0001799,3]
[404511039,1770233440154,-160.0,0.0001799,3]
[404511040,1770233440164,-152.38,0.0001799,2]
[404511041,1770233440174,-152.38,0.0001799,2]
[404511042,1770233440184,-152.38,0.0001799,2]
[404511043,1770233440193,-152.38,0.0001799,2]
[404511044,1770233440203,-159.59678437,0.0001799,2]
[404511045,1770233440213,-4776.0,0.00017998,2]
[404511046,1770233440223,-200.0,0.00017998,2]
[404511047,1770233440232,-200.0,0.00017998,3]
[404511048,1770233440242,-200.0,0.00017998,4]
[404511049,1770233440254,-200.0,0.00017998,5]
[404511050,1770233440264,-200.0,0.00017998,6]
[404511051,1770233440274,-200.0,0.00017998,7]
[404511052,1770233440283,-200.0,0.00017998,8]
[404511053,1770233440295,-200.0,0.00017998,9]
[404511054,1770233440305,-200.0,0.00017998,10]
[404511055,1770233440315,-200.0,0.00017998,11]
[404511056,1770233440325,-200.0,0.00017998,12]
[404511057,1770233440335,-200.0,0.00017998,13]
[404511058,1770233440346,-323.11245023,0.00017998,14]
[404511059,1770233440356,-300.0,0.00017999,2]
[404511060,1770233440365,-1100.68,0.00018,7]
[404511061,1770233440375,-9214491.93598561,0.00018,2]
[404511102,1770233441119,-47587.83130592,0.00018,2]
[404511105,1770233441132,-6464.47926304,0.00018,2]
[404511107,1770233441144,-3173.59832774,0.00018,2]
[404511109,1770233441156,-1740.0911033,0.00018,2]
[404511111,1770233441168,-1143.00500063,0.00018,2]
[404511115,1770233441192,-1828.871493,0.00018,2]
[404511118,1770233441235,-1000.0001,0.00018,2]
[404511119,1770233441269,-266.55077619,0.00018,2]
[404511120,1770233441281,-784.44110134,0.00018,2]
[404511121,1770233441302,-7749836.38133265,0.00018,2]
[404511122,1770233441425,-6582.34766677,0.00018,2]
[404511133,1770233443478,-1700.12755376,0.00018,2]
[404511135,1770233443490,-328.23631671,0.00018,2]
[404511136,1770233443501,-1082.41497312,0.00018,2]
[404511137,1770233443535,-1564.80579898,0.00018,2]
[404511138,1770233443547,-3371.38075636,0.00018,2]
[404511139,1770233443558,-761.0,0.00018,2]
[404511140,1770233443569,-774.13,0.00018,2]
[404511141,1770233444391,-1134.979828,0.00018,2]
[404511142,1770233444447,-9327.00777608,0.00018,2]
[404511143,1770233444458,-1155.5,0.00018,2]
[404511207,1770233445929,-500.0,0.00013698,2]
[404511208,1770233445939,-80786.55405903,0.00018,2]
[404511209,1770233445954,-6756.48853091,0.00018,2]
[404511210,1770233445965,-1322.500002,0.00018,2]
[404511211,1770233445981,-1501.03875555,0.00018,2]
[404511212,1770233445993,-778.43078015,0.00018,2]
[404511217,1770233446121,-2400.4530701,0.00018,2]
[404511218,1770233446133,-19741.7601078,0.00018,2]
[404511219,1770233446145,-20300.8448,0.00018,2]
[404511220,1770233446156,-63854.46432756,0.00018,2]
[404511221,1770233446172,-2688.3650336,0.00018,2]
[404511223,1770233446183,-19615.472205,0.00018,2]
[404511225,1770233446193,-3696.7,0.00018,2]
[404511227,1770233446204,-9888.75,0.00018,2]
[404511230,1770233454095,-1057.31473079,0.000179,3]
[404511231,1770233454119,-38942.68526921,0.00018,2]
[404511689,1770234401354,-200.0,0.00017998,10]
[404511690,1770234401380,-200.0,0.00017998,11]
[404511691,1770234401407,-200.0,0.00017998,12]
[404511692,1770234401435,-200.0,0.00017998,13]
[404511693,1770234401461,-323.11245023,0.00017998,14]
[404511694,1770234401501,-287013.94742252,0.0001995,15]
[404511695,1770234401529,-25387.00718571,0.0002,20]
[404511696,1770234401554,-7351.33850473,0.0002,14]
[404511697,1770234401579,-150.3801988,0.0002,20]
[404511698,1770234401607,-240.173527,0.00021,10]
[404511699,1770234401640,-359.60000876,0.00022222,30]
[404511700,1770234401665,-2446.571246,0.00022229,30]
[404511701,1770234401691,-1158.285879,0.00022286,30]
[404511702,1770234401720,-1000.0,0.00023,14]
[404511703,1770234401747,-836.5,0.00023352,10]
[404511704,1770234401772,-10393.00806701,0.00024,14]
[404511705,1770234401799,-359.60000876,0.00024444,30]
[404511706,1770234401824,-2000.0,0.00024657,12]
[404511707,1770234401853,-216.0,0.0002493,30]
[404511708,1770234401879,-1112.02094916,0.00025,60]
[404511709,1770234401906,-738.06861492,0.00025,60]
[404511710,1770234401933,-725.41035511,0.00025,30]